Cogmind - Beta 9.6 @@@ ROGUE MODE // 2020.08.27 @ 22:17:46 Player: Plexion Result: Self-destructed Performance ------------- Evolutions (2) 1000 Regions Visited (5) 1000 Robots Destroyed (28) 140 Value Destroyed (515) 515 Prototype IDs (22) 440 Alien Tech Used (0) 0 Bonus (300) 300 TOTAL SCORE: 3395 Bonus ------- Aligned with FarCom 300 Cogmind --------- Core Integrity 550/550 Matter 257/300 Energy 100/100 System Corruption 0% Temperature Cool (0) Movement Rolling (110) Ox3 Location -8/Materials Parts ------- > --- POWER (1) -------- (None) > --- PROPULSION (3) --- Wheel Wheel > --- UTILITY (5) ------ High-capacity Storage Unit High-capacity Storage Unit > --- WEAPON (2) ------- Light Assault Rifle Heavy Battle Rifle > --- INVENTORY (20) --- Small Storage Unit Small Storage Unit High-capacity Storage Unit High-capacity Storage Unit AWS/Thermal Light Assault Rifle Light Assault Rifle Light Assault Rifle Light Assault Rifle Grenade Launcher Rocket Launcher Field Lobotomy Kit Peak State ------------ > --- POWER ------------ Ion Engine > --- PROPULSION ------- Wheel Compact Wheel > --- UTILITY ---------- High-capacity Storage Unit High-capacity Storage Unit > --- WEAPON ----------- Light Assault Rifle Heavy Battle Rifle > --- INVENTORY -------- Wheel Wheel Small Storage Unit Small Storage Unit High-capacity Storage Unit High-capacity Storage Unit AWS/Thermal Light Assault Rifle Light Assault Rifle Light Assault Rifle Light Assault Rifle Light Assault Rifle Rocket Launcher Field Lobotomy Kit [Rating: 13] Favorites ----------- Power Ion Engine Engine Ion Engine Propulsion Light Treads Treads Light Treads Wheel Wheel Utility Small Storage Unit Storage Small Storage Unit Weapon Light Assault Rifle Ballistic Gun Light Assault Rifle Launcher Grenade Launcher Build | -11 -10 -10 -10 -9 -8 ------- Run | Scr Mat Min Exi Min Mat Slots Evolved 4 | . . . . . 4 Power . | . . . . . . Propulsion 1 | . . . . . 1 Utility 3 | . . . . . 3 Weapon . | . . . . . . Parts Attached 30 | 6 9 4 2 9 . Power 2 | 1 1 . . . . Engine 2 | 1 1 . . . . Core . | . . . . . . Reactor . | . . . . . . Propulsion 7 | 2 1 1 . 3 . Treads 2 | 2 . . . . . Leg . | . . . . . . Wheel 5 | . 1 1 . 3 . Hover . | . . . . . . Flight . | . . . . . . Utility 5 | 1 1 1 2 . . Device . | . . . . . . Storage 5 | 1 1 1 2 . . Processor . | . . . . . . Hackware . | . . . . . . Protection . | . . . . . . Artifact . | . . . . . . Weapon 16 | 2 6 2 . 6 . Energy Gun . | . . . . . . Energy Cannon . | . . . . . . Ballistic Gun 14 | 2 6 1 . 5 . Ballistic Cannon . | . . . . . . Launcher 2 | . . 1 . 1 . Special Weapon . | . . . . . . Impact Weapon . | . . . . . . Slashing Weapon . | . . . . . . Piercing Weapon . | . . . . . . Special Melee Weapon . | . . . . . . Unidentified Prototypes . | . . . . . . Parts Lost 10 | . 3 1 . 6 . Power 2 | . 1 . . 1 . Propulsion 5 | . 1 1 . 3 . Utility . | . . . . . . Weapon 3 | . 1 . . 2 . Highest Loss Streak 4 | . 2 1 . 4 . Average Slot Usage (%) 93 | . 88 98 100 88 . Engine 13 | . 14 14 14 6 . Treads 9 | . 24 2 . . . Wheel 17 | . 3 24 28 26 . Storage 23 | . 16 28 28 28 . Ballistic Gun 26 | . 28 24 28 27 . Launcher 1 | . . 3 . . . Naked Turns . | . . . . . . Heaviest Build 74 | 12 15 45 71 74 . Greatest Support 40 | 40 40 26 26 26 . Greatest Overweight (x) 7 | . . 2 2 7 . Average Overweight (x) 1 | . . 1 1 3 . Largest Inventory Capacity 20 | 6 8 14 20 20 20 Average Capacity 12 | 5 6 13 17 20 20 Most Carried 16 | 3 6 10 16 16 13 Average Carried 8 | 1 4 8 12 12 13 Final Capacity 20 | 6 8 14 20 20 20 Final Carried 16 | 3 6 10 16 13 13 Class Distribution -------------------- 78% | Mutant 21% | Hauler-Mutant Dominant Class ---------------- Mutant | -10/Materials Mutant | -10/Mines Hauler-Mutant | -10/Exiles Hauler-Mutant | -9/Mines Hauler-Mutant | -8/Materials Resources | -11 -10 -10 -10 -9 -8 ----------- Run | Scr Mat Min Exi Min Mat Matter Collected 759 | 194 212 182 . 171 . Remotely . | . . . . . . Salvage Created 753 | . 436 108 . 209 . Parts 58 | . 29 17 . 12 . Haulers Intercepted . | . . . . . . Recyclers Shooed 1 | . 1 . . . . Parts Field Recycled . | . . . . . . Retrieved Matter . | . . . . . . Parts Self-Destructed . | . . . . . . Prevented . | . . . . . . Kills | -11 -10 -10 -10 -9 -8 ------- Run | Scr Mat Min Exi Min Mat Combat Hostiles Destroyed 24 | . 10 9 . 5 . Guns 18 | . 10 3 . 5 . AOE 6 | . . 6 . . . Classes Destroyed 6 | . 4 1 . 1 . Worker 1 | . 1 . . . . Tunneler 1 | . . 1 . . . Recycler 2 | . 2 . . . . Swarmer 15 | . 6 9 . . . Grunt 7 | . 4 . . 3 . Duelist 2 | . . . . 2 . Best Kill Streak 3 | . 3 3 . 3 . Combat Bots Only 3 | . 2 3 . 3 . Max Kills in Single Turn 3 | . 1 3 . 1 . Gunslinging . | . . . . . . Exploded 3 | . . 3 . . . Melee . | . . . . . . Uniques/NPCs Destroyed . | . . . . . . Combat | -11 -10 -10 -10 -9 -8 -------- Run | Scr Mat Min Exi Min Mat Damage Taken 1318 | . 603 226 . 489 . Core 160 | . 76 16 . 68 . Absorbed by Shields . | . . . . . . Core Remaining (%) 68 | 100 . . . 36 . Volleys Fired 100 | . 55 23 . 22 . Largest 2 | . 2 2 . 2 . Hottest 53 | . 40 40 . 53 . Shots Fired 189 | . 109 39 . 41 . Gun 182 | . 109 32 . 41 . Cannon . | . . . . . . Launcher 7 | . . 7 . . . Special . | . . . . . . Kinetic 182 | . 109 32 . 41 . Thermal . | . . . . . . Explosive 7 | . . 7 . . . Electromagnetic . | . . . . . . Robot Hit Streak 18 | . 15 12 . 18 . Robot Miss Streak 3 | . 3 3 . 2 . Penetration Max . | . . . . . . Secondary Targets 3 | . 1 . . 2 . Max Gunslinging Chain 1 | . 1 . . 1 . Shots Hit Robots 127 | . 72 20 . 35 . Core Hits 45 | . 22 14 . 9 . Critical Hits 1 | . . . . 1 . Critical Kills . | . . . . . . Critical Parts Destroyed 1 | . . . . 1 . Melee Attacks . | . . . . . . Impact . | . . . . . . Slashing . | . . . . . . Piercing . | . . . . . . Sneak Attacks . | . . . . . . Combat Hostiles . | . . . . . . Follow-up Attacks . | . . . . . . Damage Inflicted 1458 | . 588 444 . 426 . Guns 1154 | . 588 140 . 426 . Cannons . | . . . . . . Explosions 304 | . . 304 . . . Melee . | . . . . . . Ramming . | . . . . . . Kinetic 1154 | . 588 140 . 426 . Thermal . | . . . . . . Explosive 304 | . . 304 . . . Electromagnetic . | . . . . . . Impact . | . . . . . . Slashing . | . . . . . . Piercing . | . . . . . . Highest Corruption . | . . . . . . Average Corruption . | . . . . . . Corruption Purged . | . . . . . . Overload Shots . | . . . . . . Overflow Damage 17 | . . 17 . . . Projectiles . | . . . . . . Explosions 17 | . . 17 . . . Melee . | . . . . . . Knockbacks . | . . . . . . Impact . | . . . . . . Kinetic . | . . . . . . Secondary . | . . . . . . Self-Inflicted Damage 64 | . . 64 . . . Shots 3 | . . 3 . . . Rammed . | . . . . . . Targets Rammed . | . . . . . . Kicked . | . . . . . . Crushed . | . . . . . . Highest Temperature 30 | . 12 . . 30 . Average Temperature 10 | . 6 . . 12 . Received Heat Transfer 189 | . 105 . . 84 . Siege Activations . | . . . . . . Robots Corrupted . | . . . . . . Combat Hostiles . | . . . . . . Parts Fried . | . . . . . . Impact Corruptions . | . . . . . . Robots Melted . | . . . . . . Combat Hostiles . | . . . . . . Parts Melted . | . . . . . . Heat Transferred . | . . . . . . Parts Sabotaged . | . . . . . . Parts Stolen . | . . . . . . Parts Stripped . | . . . . . . Power Chain Reactions . | . . . . . . Missiles Intercepted . | . . . . . . Alert | -11 -10 -10 -10 -9 -8 ------- Run | Scr Mat Min Exi Min Mat Peak Influence 282 | . 156 282 . 100 39 Average Influence 100 | . 76 148 . 78 39 Maximum Alert Level 1 | . . 1 . . . Low Security (%) 82 | 100 100 55 . 100 100 Level 1 17 | . . 44 . . . Level 2 . | . . . . . . Level 3 . | . . . . . . Level 4 . | . . . . . . Level 5 . | . . . . . . High Security . | . . . . . . Max Security . | . . . . . . Squads Dispatched 3 | . 3 . . . . Investigation 1 | . 1 . . . . Extermination . | . . . . . . Reinforcement 2 | . 2 . . . . Assault . | . . . . . . Garrison . | . . . . . . Intercept . | . . . . . . Construction Impeded . | . . . . . . Haulers Reinforced . | . . . . . . Stealth | -11 -10 -10 -10 -9 -8 --------- Run | Scr Mat Min Exi Min Mat Distress Signals 1 | . 1 . . . . Communications Jammed . | . . . . . . Distress Signals . | . . . . . . Times Spotted 35 | . 21 9 . 5 . Peak Tracking Total 6 | . 6 3 . 3 . Tactical Retreats 4 | . 4 . . . . Traps | -11 -10 -10 -10 -9 -8 ------- Run | Scr Mat Min Exi Min Mat Traps Triggered 2 | . 2 . . . . Indirectly . | . . . . . . Trap Hack Attempts . | . . . . . . Triggered . | . . . . . . Disarmed . | . . . . . . Reprogrammed . | . . . . . . Reused . | . . . . . . Traps Extracted . | . . . . . . Installed . | . . . . . . Triggered . | . . . . . . Exploded 2 | . . . 2 . . Machines | -11 -10 -10 -10 -9 -8 ---------- Run | Scr Mat Min Exi Min Mat Machines Disabled . | . . . . . . Max in Single Turn . | . . . . . . Machines Sabotaged . | . . . . . . Garrisons Compromised . | . . . . . . Overloaded Fab Kills . | . . . . . . Fab Network Shutdowns . | . . . . . . Hacking | -11 -10 -10 -10 -9 -8 --------- Run | Scr Mat Min Exi Min Mat Machines Accessed 5 | . 3 . 2 . . Terminals 3 | . 3 . . . . Fabricators . | . . . . . . Repair Stations . | . . . . . . Recycling Units . | . . . . . . Scanalyzers . | . . . . . . Garrison Access . | . . . . . . Total Hacks 9 | . 7 . 2 . . Successful 6 | . 4 . 2 . . Failed 3 | . 3 . . . . Catastrophic 2 | . 2 . . . . Database Lockouts . | . . . . . . Manual 8 | . 7 . 1 . . Terminals 7 | . 7 . . . . Fabricators . | . . . . . . Repair Stations . | . . . . . . Recycling Units . | . . . . . . Scanalyzers . | . . . . . . Garrison Access . | . . . . . . Terminal Hacks 6 | . 4 . 2 . . Record 1 | . . . 1 . . Branch Access Points 1 | . 1 . . . . Recall Reinforcements 1 | . 1 . . . . Zone Layout 2 | . 2 . . . . EX-Prototype ID Bank 1 | . . . 1 . . Fabricator Hacks . | . . . . . . Repair Station Hacks . | . . . . . . Recycling Unit Hacks . | . . . . . . Scanalyzer . | . . . . . . Garrison Access Hacks . | . . . . . . Unauthorized Hacks . | . . . . . . Terminals . | . . . . . . Fabricators . | . . . . . . Repair Stations . | . . . . . . Recycling Units . | . . . . . . Scanalyzers . | . . . . . . Garrison Access . | . . . . . . Data Cores Recovered . | . . . . . . Used . | . . . . . . Hacking Detections 2 | . 2 . . . . Full Trace Events . | . . . . . . Feedback Events . | . . . . . . Feedback Blocked . | . . . . . . Robot Schematics Acquired . | . . . . . . Robots Built . | . . . . . . Matter . | . . . . . . Time . | . . . . . . Total Robot Build Rating . | . . . . . . Part Schematics Acquired . | . . . . . . Parts Built . | . . . . . . Matter . | . . . . . . Time . | . . . . . . Total Part Build Rating . | . . . . . . Parts Repaired . | . . . . . . Time . | . . . . . . Parts Recycled . | . . . . . . Recycled Matter . | . . . . . . Retrieved Matter . | . . . . . . Retrieved Components . | . . . . . . Parts Scanalyzed . | . . . . . . Part Schematics Acquired . | . . . . . . Parts Damaged . | . . . . . . Bothacking | -11 -10 -10 -10 -9 -8 ------------ Run | Scr Mat Min Exi Min Mat Used RIF Installer . | . . . . . . Robots Hacked . | . . . . . . Non-combat . | . . . . . . Combat . | . . . . . . Robot Hacks Applied . | . . . . . . Relay Couplers Released . | . . . . . . Robots Rewired . | . . . . . . Allies Hacked . | . . . . . . Hacks Repelled . | . . . . . . Allies | -11 -10 -10 -10 -9 -8 -------- Run | Scr Mat Min Exi Min Mat Total Allies 1 | . . 1 . . . Largest Group 1 | . . 1 1 . . Highest-Rated Group 31 | . . 31 31 . . Highest-Rated Ally 31 | . . 31 31 . . Total Orders . | . . . . . . Ally Attacks . | . . . . . . Total Damage . | . . . . . . Kills . | . . . . . . Allies Corrupted . | . . . . . . Allies Melted . | . . . . . . Intel | -11 -10 -10 -10 -9 -8 ------- Run | Scr Mat Min Exi Min Mat Robot Analysis Total . | . . . . . . Derelict Logs Recovered 2 | . . 1 . 1 . Drone Launches . | . . . . . . Drone Recoveries . | . . . . . . Exploration | -11 -10 -10 -10 -9 -8 ------------- Run | Scr Mat Min Exi Min Mat Turns Passed 2138 | 94 741 668 403 227 5 Spaces Moved 1532 | 60 386 573 377 136 . Core 12 | 12 . . . . . Treads 304 | 48 256 . . . . Legs . | . . . . . . Wheels 1216 | . 130 573 377 136 . Hover . | . . . . . . Flight . | . . . . . . Fastest Speed 50 | 50 100 100 100 110 . Average Speed 115 | 138 139 103 105 113 . Slowest Speed 160 | 160 160 120 110 150 . Overloaded Moves . | . . . . . . Propulsion Burnouts . | . . . . . . Robots Hopped . | . . . . . . Cave-ins Triggered . | . . . . . . Exploration Rate (%) 45 | 4 79 90 70 27 1 Regions Visited 5 Branch Regions 3 Pre-discovered Areas 2 | . . 1 1 . . Known Exits Taken 1 | . 1 . . . . Unknown Exits Taken 4 | 1 . 1 1 1 . Scrap Searched 3 | . . 2 . 1 . Spaces Dug 7 | . . 7 . . . Terrain Destroyed 45 | . . 44 . 1 . Melee . | . . . . . . Projectile 1 | . . . . 1 . AOE 44 | . . 44 . . . Actions | -11 -10 -10 -10 -9 -8 --------- Run | Scr Mat Min Exi Min Mat Total 1727 | 68 490 612 381 171 5 Wait 56 | . 38 9 . 4 5 Move 1527 | 59 385 572 376 135 . Hop . | . . . . . . Pick Up 13 | 3 2 4 3 1 . Fast Attach 8 | 6 1 . . 1 . Attach 9 | . 3 1 . 5 . Detach . | . . . . . . Swap 13 | . 5 3 2 3 . Drop 1 | . 1 . . . . Fire 100 | . 55 23 . 22 . Melee . | . . . . . . Ram . | . . . . . . Kick . | . . . . . . Crush . | . . . . . . Escape Stasis . | . . . . . . Rewire . | . . . . . . Trap . | . . . . . . Miscellaneous . | . . . . . . Route ------- -11/Scrapyard -10/Materials (discovered 4 exits: [*Mat x2] / *Min x2) -10/Mines (discovered 2 exits: [*Mat] / *Exi) -10/Exiles (discovered 2 exits: [*Min x2]) -9/Mines -8/Materials History --------- Turn | Location | Event 12 | -11/Scrapyard | Discovered new exit (range 15) 95 | -11/Scrapyard | Entered Materials 153 | -10/Materials | Identified exit to Mines 316 | -10/Materials | Build established: Mutant 477 | -10/Materials | Discovered new exit (range 10) 729 | -10/Materials | Discovered new exit (range 16) 836 | -10/Materials | Entered Mines 940 | -10/Mines | Escorted by a lone wolf Derelict 1114 | -10/Mines | Received a Rocket Launcher from a helpful Derelict 1127 | -10/Mines | Deemed a non-threat by the Exiles lab entrance 1128 | -10/Mines | Discovered new exit (range 5) 1189 | -10/Mines | Discovered new exit (range 10) 1389 | -10/Mines | A weapon hastily lodged in a ceiling crevice suddenly fell to the ground 1504 | -10/Mines | Entered Exiles 1504 | -10/Exiles | Accompanied by 1 ally 1520 | -10/Exiles | Discovered new exit (range 15) 1529 | -10/Exiles | Met 8R-AWN 1546 | -10/Exiles | Met EX-HEX 1639 | -10/Exiles | Met EX-DEC 1719 | -10/Exiles | Learned location of Zion (-7) 1741 | -10/Exiles | Met EX-BIN 1756 | -10/Exiles | Aligned with FarCom system 1757 | -10/Exiles | Given EX-Vault access code 1785 | -10/Exiles | Opened EX-Vault 1791 | -10/Exiles | Found AWS/Thermal 1797 | -10/Exiles | Found Field Lobotomy Kit 1819 | -10/Exiles | Warned to stay clear of 0b10 Research branches 1832 | -10/Exiles | Exiles lab attacked by MAIN.C 1891 | -10/Exiles | Discovered new exit (range 14) 1907 | -10/Exiles | Stole two prototypes: AWS/Thermal, Field Lobotomy Kit 1907 | -10/Exiles | Entered Mines 1959 | -9/Mines | Lost 4 parts (3n1w) 1976 | -9/Mines | Build established: Hauler-Mutant 1989 | -9/Mines | Core integrity fell below 50% 2053 | -9/Mines | Discovered new exit (range 9) 2090 | -9/Mines | Assisted by bots powering up and referring to "LRC-V3" 2134 | -9/Mines | Entered Materials 2134 | -8/Materials | Evolved 4 slots: Propulsion x1, Utility x3 2139 | -8/Materials | Self-destructed Last Messages --------------- 02016_ Acquired 38 matter. 02018_ Acquired 48 matter. 02035_ T-07 Excavator is excavating. 02037_ U-05 Engineer lays Concrete. 02039_ T-07 Excavator is excavating. 02045_ Acquired derelict log, extracted data. Data stored: Storage entrances (x1). 02053_ EXIT=FOUND 02076_ Searching scrap... 02076_ Found 29 Matter. 02076_ Found Lrg. Storage Unit. 02076_ Found Med. Battery. 02076_ Found Particle Cannon. 02077_ Acquired 29 matter. 02090_ YI-UF0 nonchalantly drops a Grenade Launcher on the ground. 02091_ Acquired Grenade Launcher. PARAMETERS=PROPULSION_1,UTILITY_3 LOCATION=UNKNOWN GOAL=ESCAPE 02134_ Receiving FarCom transmissions... Map ----- +----------------------------------------------------+ | ????????????????????????????????????? | | ????????????????????????????????????? | | ????????????????????????????????????? | | ????????????????????????????????????? | | ????????????????????????????????????? | | ????????????????????????????????????? | | ????????????????????????????????????? | | ????????????????????????????????????? | | ????????????????????????????????????? | | ????????????????????????????????????? | | ????????????????????????????????????? | | ????????????????????????????????????? | | ????????????????????????????????????? | | ????????????????????????????????????? | | ?????????#######????????????????????? | | ?????????# #????????????????????? | | ?????????# ! ????????????????????? | | ?????????? ?????????????????????? | | ?????????? ?????????????????????? | | ?????????? ?????????????????????? | | ??????????# #?????????????????????? | | ??????????# #?????????????????????? | | ??????????# #?????????????????????? | | ??????????+ +?????????????????????? | | ?????????o# #?????????????????????? | | ??????????# @ #?????????????????????? | | ??????????# #?????????????????????? | | ??????????#####?????????????????????? | | ????????????????????????????????????? | | ????????????????????????????????????? | | ????????????????????????????????????? | | ????????????????????????????????????? | | ????????????????????????????????????? | | ????????????????????????????????????? | | ????????????????????????????????????? | | ????????????????????????????????????? | | ????????????????????????????????????? | | ????????????????????????????????????? | | ????????????????????????????????????? | | ????????????????????????????????????? | | ????????????????????????????????????? | | ????????????????????????????????????? | | ????????????????????????????????????? | | ????????????????????????????????????? | | ????????????????????????????????????? | | ????????????????????????????????????? | | | | | | | | | +----------------------------------------------------+ Best States ------------- Heat Dissipation 25 Energy Generation 10 Energy Capacity 250 Matter Stores 257 Matter Capacity 300 Sight Range 16 Terrain Scan Density 10 Evasion (%) 50 Recoil Reduction 2 Item Schematics ----------------- None Robot Schematics ------------------ None Fabricated ------------ Nothing Alien Tech Used ----------------- None Achievements -------------- None Challenges ------------ None Game ------ Seed TerrabombLauncherUnit Manual? 0 Play Time 00:11:09 Cumulative 111.3 hours Start 2020.08.25 @ 14:58:44 End 2020.08.27 @ 22:17:46 Sessions 3 Manual Loads 0 Difficulty Rogue Special Mode None Game No. 128 Rogue 41 Adventurer 87 Explorer 0 Win Type - Total 4 Types 3/0/0/1/0/0/0 Lore% 53 Gallery% 64 Achievement% 55 Wizard Run 0 Options --------- ASCII 0 Keyboard 1 Movement Numpad Keybinds 0 Fullscreen 1 Font 18/Smallcaps Map View 76x50 Tactical HUD 1 Map Filters NONE Filters NONE Steam 1 RUN: 759a28ea-b884-407e-a5b1-7471b28a4fe0